bitfinex/quotes_ETHUSD_20251128
["timestamp","ask_amount","ask_price","bid_price","bid_amount"]
[1764354380758,0.002,3040.3,3040.2,5.55173374]
[1764354380959,0.002,3040.3,3040.2,5.23943374]
[1764354382855,0.5638,3040.3,3040.0,0.72559411]
[1764354383159,0.002,3040.3,3040.2,0.3123]
[1764354384437,0.002,3040.3,3040.2,3.60155728]
[1764354384636,0.002,3040.3,3040.2,3.49925728]
[1764354386051,0.102,3040.3,3040.2,3.49925728]
[1764354387763,0.5638,3040.3,3040.1,3.28936502]
[1764354388059,0.5638,3040.3,3039.8,0.72559411]
[1764354388060,0.1,3039.9,3039.8,0.72559411]
[1764354388249,0.7588,3039.9,3039.6,3.28989506]
[1764354388450,0.5618,3039.7,3039.6,3.28989506]
[1764354388652,0.002,3040.3,3039.8,0.3123]
[1764354388653,0.1,3040.1,3039.8,0.3123]
[1764354388826,7.136807,3040.2,3039.7,3.28973891]
[1764354389033,0.4618,3039.7,3039.5,3.29000449]
[1764354389269,0.1,3039.6,3039.5,3.29000449]
[1764354389431,0.4444,3039.6,3039.5,3.50000449]
[1764354389630,0.9003,3039.6,3039.5,3.50000449]
[1764354390157,0.9003,3039.6,3039.4,0.001]
[1764354390458,0.5618,3039.5,3039.4,0.001]
[1764354390770,0.5618,3039.5,3039.4,0.211]
[1764354390771,1.0177,3039.5,3039.4,0.211]
[1764354391335,1.0177,3039.5,3039.4,0.001]
[1764354391537,1.0177,3039.5,3039.4,0.211]
[1764354392062,1.0177,3039.5,3039.4,3.50112305]
[1764354393372,1.32470709,3039.5,3039.4,3.50112305]
[1764354393576,1.32470709,3039.5,3039.4,0.211]
[1764354393772,1.32470709,3039.5,3039.4,3.50112305]
[1764354394162,1.32470709,3039.5,3039.4,0.211]
[1764354394754,0.86880709,3039.5,3039.4,3.50112305]
[1764354394956,0.40700709,3039.5,3039.4,4.49256767]
[1764354395167,0.1,3040.2,3039.5,0.72559411]
[1764354395383,0.002,3040.3,3040.2,0.3123]
[1764354395577,0.002,3040.3,3040.2,0.6542]
[1764354395879,0.002,3040.3,3040.2,0.9665]
[1764354397284,0.002,3040.3,3040.2,3.94345728]
[1764354397447,0.002,3040.3,3040.2,4.66673918]
[1764354399246,0.002,3040.3,3040.2,3.28925728]
[1764354399558,0.102,3040.3,3040.2,3.49925728]
[1764354400485,0.5914,3040.3,3040.2,3.49925728]
[1764354402577,0.102,3040.3,3040.2,3.49925728]
[1764354403185,0.102,3040.3,3040.2,3.28925728]
[1764354403376,0.102,3040.3,3040.2,3.49925728]
[1764354405256,0.5914,3040.3,3040.2,3.28925728]
[1764354405466,1.26332401,3040.3,3040.1,0.21]
[1764354405772,0.1,3040.2,3040.1,0.21]
[1764354406377,0.102,3040.3,3040.1,0.21]
[1764354406769,0.40936877,3040.3,3040.2,3.28925728]
[1764354407293,0.89880094,3040.3,3040.2,3.28925728]
[1764354408998,1.36340094,3040.3,3039.8,0.72559411]
[1764354409287,0.1,3040.0,3039.9,0.22614124]
[1764354409458,0.002,3040.3,3039.9,1.29157444]
[1764354409661,0.002,3040.3,3040.1,0.3123]
[1764354410673,0.89691833,3040.2,3039.9,0.9631332]
[1764354410876,0.5894,3040.2,3040.0,3.28947368]
[1764354411186,0.4894,3040.1,3040.0,3.28947368]
[1764354411381,0.1,3040.2,3040.0,6.78894736]
[1764354411593,0.002,3040.3,3040.1,0.64073908]
[1764354411899,0.002,3040.3,3040.2,0.3123]
[1764354412303,0.002,3040.3,3040.0,6.57894736]
[1764354412304,1.36356333,3040.3,3040.0,6.57894736]
[1764354412592,0.5666,3040.3,3040.1,0.21]
[1764354412904,0.5894,3040.1,3039.9,3.28957393]
[1764354413110,0.1,3040.0,3039.9,4.41668484]
[1764354413394,0.1,3040.0,3039.9,4.62668484]
[1764354414291,0.002,3040.3,3039.9,11.51814862]
[1764354414484,0.002,3040.3,3040.2,0.3123]
[1764354414683,0.30956523,3040.3,3040.2,0.32843529]
[1764354415197,0.30956523,3040.3,3040.2,3.30539257]
[1764354415568,0.30956266,3040.3,3040.2,3.30539257]
[1764354415966,0.30956266,3040.3,3040.2,5.31506167]
[1764354415967,0.002,3040.3,3040.2,5.31506167]
[1764354416291,0.002,3040.3,3040.2,5.21276167]
[1764354416798,0.002,3040.3,3040.2,5.52506167]
[1764354417196,0.002,3040.3,3040.2,5.21276167]
[1764354419103,0.002,3040.3,3040.2,5.52506167]
[1764354419481,0.002,3040.3,3040.2,5.19662638]
[1764354419868,0.002,3040.3,3040.2,4.98662638]
[1764354420104,0.002,3040.3,3040.2,5.19662638]
[1764354420303,0.002,3040.3,3040.2,5.52506167]
[1764354420711,0.002,3040.3,3040.2,10.59222915]
[1764354420922,0.002,3040.3,3040.2,10.57609386]
[1764354422182,0.4914,3040.3,3040.1,3.28935301]
[1764354422383,0.5894,3040.2,3040.1,3.28935301]
[1764354422599,0.1,3040.1,3039.7,3.28979833]
[1764354422798,0.1,3040.1,3039.8,0.21]
[1764354422985,0.002,3040.3,3039.9,0.01614341]
[1764354423201,0.30773905,3040.2,3040.0,0.21]
[1764354423378,0.002,3040.3,3040.0,0.21]
[1764354423379,0.002,3040.3,3040.1,3.28936548]
[1764354423570,0.89733537,3040.2,3040.1,3.28936548]
[1764354423775,0.89733537,3040.2,3040.1,0.21]
[1764354424118,1.36193537,3040.2,3040.1,0.21]
[1764354425176,1.36193537,3040.2,3040.0,3.2894335]
[1764354425384,0.1,3039.9,3039.7,3.28977878]
[1764354425697,0.002,3040.3,3039.8,0.8346]
[1764354426018,0.30824012,3040.2,3039.9,5.08330872]
[1764354426177,0.30824012,3040.1,3039.9,0.01614124]
[1764354426509,0.30824012,3040.0,3039.9,5.08330872]
[1764354426882,0.30824012,3040.0,3039.9,5.39560872]
[1764354427084,0.30824012,3040.0,3039.9,6.71115325]
[1764354427277,0.30824012,3040.0,3039.9,10.2968939]
[1764354427585,0.002,3040.3,3039.9,16.87605768]
[1764354427785,0.002,3040.3,3040.2,0.3123]
[1764354428015,0.31021913,3040.3,3040.2,0.53843529]
[1764354428410,0.31021913,3040.3,3040.2,1.13022557]
[1764354428713,0.31021913,3040.3,3040.2,1.11409028]
[1764354429589,0.31021913,3040.3,3040.2,4.40334756]
[1764354432907,0.31021913,3040.3,3040.2,4.09104756]
[1764354433111,1.33091913,3040.3,3040.2,3.49925728]
[1764354433316,1.33091913,3040.3,3040.2,0.21]
[1764354434305,1.33091913,3040.3,3040.2,3.49925728]
[1764354436216,1.23091913,3040.3,3040.2,0.21]
[1764354436415,1.33091913,3040.3,3040.2,3.49925728]
[1764354436723,0.86411913,3040.3,3040.2,3.49925728]
[1764354437090,1.23091913,3040.3,3040.2,3.49925728]
[1764354437299,0.31021913,3040.3,3040.2,3.49925728]
[1764354437699,0.86411913,3040.3,3040.2,3.49925728]
[1764354437904,0.76411913,3040.3,3040.2,3.49925728]
[1764354438103,0.86411913,3040.3,3040.2,3.49925728]
[1764354438791,0.31021913,3040.3,3040.2,4.50655412]
[1764354439492,0.31021913,3040.3,3040.2,4.49041883]
[1764354441293,0.78301913,3040.3,3040.2,4.17811883]
[1764354441494,0.78301913,3040.3,3040.2,3.49925728]
[1764354441889,0.31021913,3040.3,3040.2,3.81155728]
[1764354447127,0.31021913,3040.3,3040.2,3.60155728]
[1764354447424,0.31021913,3040.3,3040.0,3.28943954]
[1764354447425,1.25881913,3040.3,3040.0,3.28943954]
[1764354447604,0.4728,3040.1,3039.9,0.001]
[1764354447807,0.78101913,3040.0,3039.9,0.33007983]
[1764354448010,0.78101913,3040.0,3039.9,0.54007983]
[1764354448721,0.30821913,3040.0,3039.9,0.54007983]
[1764354449724,0.30821913,3040.0,3039.9,3.82966172]
[1764354449927,0.30821913,3040.0,3039.9,4.15810513]
[1764354450096,0.30821913,3040.0,3039.9,4.14196172]
[1764354450300,0.30821913,3040.0,3039.9,9.22527261]
[1764354450496,0.30821913,3040.0,3039.9,9.5214292]
[1764354450725,0.002,3040.3,3039.9,16.10059298]
[1764354450925,0.002,3040.3,3040.2,0.3123]
[1764354451110,0.31032067,3040.3,3040.2,0.3123]
[1764354451629,0.88312067,3040.3,3040.2,0.21]
[1764354451824,0.88312067,3040.3,3040.2,3.49925728]
[1764354452232,0.88312067,3040.3,3040.2,3.51539257]
[1764354453630,0.88312067,3040.3,3040.2,3.49925728]
[1764354454000,0.88312067,3040.3,3040.2,3.51539257]
[1764354455917,0.78312067,3040.3,3040.2,3.30539257]
[1764354456117,0.88312067,3040.3,3040.2,3.49925728]
[1764354456307,1.35602067,3040.3,3040.2,3.49925728]
[1764354456507,1.35602067,3040.3,3040.2,0.21]
[1764354456912,1.25602067,3040.3,3040.2,0.21]
[1764354457117,1.35602067,3040.3,3040.2,0.21]
[1764354457723,1.25602067,3040.3,3040.2,0.21]
[1764354457925,1.25602067,3040.3,3039.9,0.001]
[1764354458131,0.5892,3040.0,3039.9,0.001]
[1764354458327,0.89752067,3040.0,3039.9,0.001]
[1764354458549,1.37042067,3040.0,3039.9,0.001]
[1764354459420,0.89752067,3040.0,3039.9,0.001]
[1764354459617,0.30832067,3040.0,3039.9,0.32944341]
[1764354460011,0.30832067,3040.0,3039.9,3.6190253]
[1764354460745,0.30832067,3040.0,3039.9,4.33089616]
[1764354460912,0.30832067,3040.0,3039.9,9.71036364]
[1764354461108,0.30832067,3040.0,3039.9,4.31475275]
[1764354462147,0.30832067,3040.0,3039.9,4.62705275]
[1764354462839,0.002,3040.3,3039.9,11.20621653]
[1764354463057,0.30818779,3040.2,3040.0,1.15776127]
[1764354463224,0.30818779,3040.1,3040.0,1.14162165]
[1764354463739,0.30818779,3040.1,3040.0,1.45392165]
[1764354464851,0.30818779,3040.1,3040.0,4.74339533]
[1764354465053,0.30818779,3040.1,3040.0,4.75953603]
[1764354465355,0.30818779,3040.1,3040.0,4.74339533]
[1764354469255,0.30818779,3040.1,3040.0,4.75953603]
[1764354469925,0.30818779,3040.1,3040.0,4.74339533]
[1764354473342,0.30818779,3040.1,3040.0,4.75953603]
[1764354474063,0.30818779,3040.1,3040.0,4.74339533]
[1764354476772,0.30818779,3040.1,3040.0,4.75953603]
[1764354477770,0.30820976,3040.1,3040.0,4.75953603]
[1764354478856,0.30820976,3040.1,3040.0,4.74339533]
[1764354479378,0.30820976,3040.1,3040.0,4.43109533]
[1764354479579,0.79740976,3040.1,3040.0,4.43109533]
[1764354480035,0.79940976,3040.1,3040.0,4.43109533]
[1764354480236,1.27230976,3040.1,3039.9,3.29051554]
[1764354480446,1.0621,3040.0,3039.9,3.29051554]
[1764354480674,1.37030244,3040.0,3039.9,0.001]
[1764354480882,1.37030244,3040.0,3039.9,0.21]
[1764354481094,0.30820244,3040.0,3039.9,0.21]
[1764354481262,0.79740244,3040.0,3039.9,0.001]
[1764354481565,0.30820244,3040.0,3039.9,0.5223]
[1764354482133,0.30820244,3040.0,3039.9,5.59122541]
[1764354482446,0.30820244,3040.0,3039.9,6.15196235]
[1764354482647,0.002,3040.1,3039.9,6.15196235]
[1764354482850,0.002,3040.1,3040.0,3.81077368]
[1764354483040,0.31020459,3040.1,3040.0,3.81077368]
[1764354484378,1.27230459,3040.1,3040.0,3.49847368]
[1764354484751,1.27230459,3040.1,3040.0,4.23345209]
[1764354485467,0.31020459,3040.1,3040.0,4.56189279]
[1764354485775,0.31020459,3040.1,3040.0,4.23345209]
[1764354488074,0.31020459,3040.1,3040.0,4.54575209]
[1764354488372,0.31020459,3040.1,3040.0,4.56189279]
[1764354490654,0.80240459,3040.1,3040.0,4.23345209]
[1764354491860,0.31020459,3040.1,3040.0,4.23345209]
[1764354493296,0.80240459,3040.1,3040.0,4.23345209]
[1764354493589,0.80240459,3040.1,3040.0,4.02445209]
[1764354493756,0.31020459,3040.1,3040.0,4.54575209]
[1764354493956,0.31020459,3040.1,3040.0,4.35289279]
[1764354494358,0.31020459,3040.1,3040.0,4.56189279]
[1764354495574,0.31020459,3040.1,3040.0,9.6308182]
[1764354495891,0.002,3040.1,3040.0,9.9269775]
[1764354496284,0.002,3040.1,3040.0,10.23718209]
[1764354499935,0.002,3040.1,3040.0,10.9627762]
[1764354501320,0.002,3040.1,3040.0,10.6504762]
[1764354501631,0.002,3040.1,3040.0,10.9627762]
[1764354502326,0.4673,3040.1,3040.0,0.31020459]
[1764354502527,1.27252842,3040.1,3040.0,3.49847368]
[1764354504117,1.27252842,3040.1,3040.0,8.56739909]
[1764354504306,0.77552842,3040.1,3040.0,8.56739909]
[1764354504704,1.27252842,3040.1,3040.0,8.56739909]
[1764354507008,0.31022842,3040.1,3040.0,8.56739909]
[1764354507207,0.31022842,3040.1,3040.0,10.06549642]
[1764354508025,0.31022842,3040.1,3040.0,9.85649642]
[1764354508223,0.31022842,3040.1,3040.0,10.06549642]
[1764354508466,0.002,3040.1,3040.0,10.06549642]
[1764354509236,0.002,3040.6,3040.0,10.06549642]
[1764354509237,0.002,3040.6,3040.4,0.3123]
[1764354509428,0.002,3040.6,3040.5,1.24689411]
[1764354509622,0.002,3040.6,3040.5,2.22009324]
[1764354509944,0.002,3040.6,3040.5,2.35184749]
[1764354510839,0.002,3040.6,3040.5,2.33572031]
[1764354511255,0.002,3040.6,3040.5,5.64078023]
[1764354512483,0.002,3040.6,3040.5,5.62465305]
[1764354513963,0.002,3040.6,3040.5,5.64078023]
[1764354514179,0.002,3040.6,3040.5,5.31235305]
[1764354514381,0.002,3041.0,3040.5,8.92971297]
[1764354514678,0.002,3041.0,3040.7,6.10681952]
[1764354514885,0.002,3041.0,3040.7,6.12294129]
[1764354515081,0.002,3041.0,3040.7,6.43524129]
[1764354515272,0.002,3041.0,3040.9,0.3123]
[1764354515587,0.002,3041.0,3040.9,1.1809405]
[1764354516905,0.002,3041.0,3040.9,4.46944061]
[1764354517657,0.002,3041.0,3040.9,4.60118792]
[1764354519109,0.002,3041.3,3040.9,4.60118792]
[1764354519264,0.002,3041.3,3041.2,5.06892541]
[1764354519888,0.4793,3041.3,3041.2,5.06892541]
[1764354520091,0.4793,3041.3,3041.2,5.53782541]
[1764354520598,0.9482,3041.3,3040.9,12.28944976]
[1764354520795,0.9482,3041.3,3041.0,0.209]
[1764354520796,0.5709,3041.3,3041.0,0.209]
[1764354520969,0.4773,3041.1,3040.9,0.4793]
[1764354521298,0.88444344,3041.0,3040.9,0.6883]
[1764354521597,0.88444344,3041.0,3040.1,3.28927607]
[1764354521598,0.1,3040.8,3040.3,5.06892541]
[1764354521794,0.5773,3040.8,3040.3,5.06892541]
[1764354521996,0.4689,3040.9,3040.4,0.209]
[1764354521997,0.5689,3040.7,3040.4,0.209]
[1764354522361,0.4773,3040.5,3040.4,0.209]
[1764354522563,0.9462,3040.5,3040.4,0.209]
[1764354523199,0.9462,3040.5,3040.4,3.49804091]
[1764354529001,0.9462,3040.5,3040.4,3.5141708]
[1764354529807,0.4773,3040.5,3040.4,4.6852649]
[1764354531121,0.4773,3040.5,3040.4,4.6862649]
[1764354531420,0.9462,3040.5,3040.4,4.6862649]
[1764354532316,0.4773,3040.5,3040.4,4.6862649]
[1764354532513,0.1904,3040.9,3040.4,11.59277661]
[1764354532718,0.3073503,3040.8,3040.7,5.06892541]
[1764354533139,1.2535503,3040.8,3040.7,5.06892541]
[1764354533496,1.2535503,3040.8,3040.7,8.35764182]
[1764354533914,1.2535503,3040.8,3040.7,3.28871641]
[1764354535320,0.7846503,3040.8,3040.7,8.35764182]
[1764354535520,0.3073503,3040.8,3040.7,9.52389993]
[1764354535740,0.1904,3040.9,3040.7,12.81261634]
[1764354535943,0.6593,3040.9,3040.8,0.22512016]
[1764354536116,0.30749547,3040.9,3040.8,0.22512016]
[1764354536442,0.002,3041.0,3040.8,0.22511907]
[1764354536740,0.4709,3041.0,3040.9,6.36917283]
[1764354537042,0.77845215,3041.0,3040.9,6.36917283]
[1764354537246,1.25575215,3041.0,3040.9,6.36917283]
[1764354537549,1.25575215,3041.0,3040.9,9.65767294]
[1764354537911,1.25575215,3041.0,3040.9,3.49750011]
[1764354538123,1.25575215,3041.0,3040.8,3.28851245]
[1764354538329,0.102,3041.0,3040.9,0.209]
[1764354538544,0.7677,3040.9,3040.8,3.28851245]
[1764354538746,0.97542214,3040.9,3040.8,3.49751245]
[1764354539061,1.54432214,3040.9,3040.8,3.28851245]
[1764354539233,1.44432214,3040.9,3040.8,3.49751245]
[1764354539614,1.54432214,3040.9,3040.8,3.49751245]
[1764354540047,1.44432214,3040.9,3040.8,0.209]
[1764354540248,1.44432214,3040.9,3040.7,3.28867474]
[1764354540456,0.2904,3040.9,3040.8,0.209]
[1764354540669,0.59815469,3040.9,3040.8,0.209]
[1764354541035,1.54435469,3040.9,3040.8,0.209]
[1764354541555,1.44435469,3040.9,3040.4,0.001]
[1764354541753,0.5773,3040.5,3040.4,0.001]
[1764354541955,0.88505469,3040.5,3040.4,0.001]
[1764354542152,1.35395469,3040.5,3040.4,0.21]
[1764354543278,1.35395469,3040.5,3040.4,0.001]
[1764354543482,1.35395469,3040.5,3040.4,0.21]
[1764354545256,0.78505469,3040.5,3040.4,5.27539929]
[1764354545480,0.78505469,3040.5,3040.4,9.09359317]
[1764354546280,1.25015469,3040.5,3040.4,9.09359317]
[1764354549976,1.25015469,3040.5,3040.4,4.02819388]
[1764354551688,0.30775469,3040.5,3040.4,4.02819388]
[1764354552178,0.30775469,3040.5,3040.4,3.29004091]
[1764354552380,0.30775469,3040.5,3040.4,3.49904091]
[1764354552585,0.30775469,3040.5,3040.4,8.5644402]
[1764354552791,0.40775469,3040.5,3040.4,8.5644402]
[1764354553108,0.30775469,3040.5,3040.4,0.001]
[1764354553307,0.30775469,3040.5,3040.4,0.21]
[1764354553504,0.30775469,3040.5,3040.4,0.001]
[1764354553707,3.59668743,3040.5,3040.4,0.001]
[1764354553907,3.69668743,3040.5,3040.4,0.001]
[1764354554795,0.40775469,3040.5,3040.4,0.001]
[1764354555679,0.30775469,3040.5,3040.4,0.001]
[1764354556080,0.40775469,3040.5,3040.4,0.001]
[1764354558723,0.44886634,3040.5,3040.4,0.001]
[1764354559498,0.40775469,3040.5,3040.4,0.001]
[1764354559722,0.40775469,3040.5,3040.4,5.06639929]
[1764354560524,0.30775469,3040.5,3040.4,8.5644402]
[1764354565103,0.30775469,3040.5,3040.4,9.74979876]
[1764354568630,0.30775469,3040.5,3040.4,9.54079876]
[1764354568930,0.30775469,3040.5,3040.4,3.49904091]
[1764354575048,0.40775469,3040.5,3040.4,3.49904091]
[1764354575250,0.40775469,3040.5,3040.4,3.29004091]
[1764354575534,0.30775469,3040.5,3040.4,0.001]
[1764354575737,0.40775469,3040.5,3040.4,3.49904091]
[1764354579133,0.30775469,3040.5,3040.4,3.49904091]
[1764354579361,0.40775469,3040.5,3040.4,3.49904091]
[1764354579869,0.30775469,3040.5,3040.4,3.49904091]
[1764354580173,0.30775469,3040.5,3040.4,4.6843991]
[1764354580464,0.40775469,3040.5,3040.4,0.21]
[1764354580659,0.40775469,3040.5,3040.4,3.49904091]
[1764354581055,0.40775469,3040.5,3040.4,0.21]
[1764354581941,0.30775469,3040.5,3040.4,8.5644402]
[1764354582269,0.40775469,3040.5,3040.4,8.5644402]
[1764354583166,0.40822869,3040.5,3040.4,8.5644402]
[1764354584739,0.30822869,3040.5,3040.4,8.5644402]
[1764354584941,0.40822869,3040.5,3040.4,8.5644402]
[1764354586363,0.30822869,3040.5,3040.4,8.5644402]
[1764354587569,0.40822869,3040.5,3040.4,8.5644402]
[1764354588002,0.30822869,3040.5,3040.4,8.5644402]
[1764354589407,0.30822869,3040.5,3040.4,10.25633813]
[1764354592595,0.04310489,3041.0,3040.9,10.13079858]
[1764354592596,0.002,3041.0,3040.9,10.13079858]
[1764354592772,0.002,3041.0,3040.9,5.27439929]
[1764354593774,0.102,3041.0,3040.9,5.27439929]
[1764354593984,0.002,3041.0,3040.9,5.27439929]
[1764354594521,0.002,3041.0,3040.9,8.5628994]
[1764354594822,0.102,3041.0,3040.9,8.5628994]
[1764354596617,0.102,3041.0,3040.9,3.49750011]
[1764354597783,0.002,3041.0,3040.9,3.49750011]
[1764354598004,0.102,3041.0,3040.9,3.49750011]
[1764354598806,0.002,3041.0,3040.9,3.49750011]
[1764354599692,0.002,3041.0,3040.9,4.99502922]
[1764354599993,0.002,3041.0,3040.9,4.68272922]
[1764354599994,0.9831,3041.0,3040.9,4.68272922]
[1764354600995,0.9831,3041.0,3040.9,3.49750011]
[1764354602206,0.002,3041.0,3040.9,3.49750011]
[1764354602414,0.9831,3041.0,3040.9,3.49750011]
[1764354603739,0.4982,3041.0,3040.9,3.49750011]
[1764354603904,0.002,3041.0,3040.9,3.49750011]
[1764354604099,0.002,3041.0,3040.9,4.99502922]
[1764354604305,0.002,3041.0,3040.9,5.01114559]
[1764354604516,0.002,3041.0,3040.9,5.32344559]
[1764354604517,0.30987158,3041.0,3040.9,5.32344559]
[1764354605113,0.002,3041.3,3041.0,0.3123]
[1764354605320,0.002,3041.4,3041.0,0.3123]
[1764354605321,0.002,3041.4,3041.3,5.0661915]
[1764354605499,0.002,3041.4,3041.3,5.81304065]
[1764354605703,0.5017,3041.4,3041.3,5.81304065]
[1764354607052,0.1883,3042.2,3041.7,0.3123]
[1764354607053,0.6397,3042.2,3041.7,0.3123]
[1764354607208,0.6397,3042.2,3042.0,5.0661915]
[1764354607408,0.6397,3042.2,3042.1,0.50661915]
[1764354607604,0.1883,3042.2,3042.1,0.50661915]
[1764354607808,0.688,3042.2,3042.1,0.50661915]
[1764354608210,1.1394,3042.2,3042.1,5.57281065]
[1764354608536,1.1394,3042.2,3042.1,5.0661915]
[1764354608737,1.1394,3042.2,3041.8,0.209]
[1764354608738,1.1394,3042.2,3041.8,5.0661915]
[1764354608937,0.6859,3041.9,3041.5,5.0661915]
[1764354609142,0.4997,3041.6,3041.5,5.0661915]
[1764354609344,0.4997,3041.6,3041.3,0.209]
[1764354609345,0.5997,3041.6,3041.3,0.209]
[1764354609531,0.4997,3041.4,3041.2,8.35436576]
[1764354609709,0.4997,3041.3,3041.2,8.35436576]
[1764354610321,0.04109408,3041.8,3041.2,8.35436576]
[1764354610526,7.863008,3041.7,3041.6,5.0661915]
[1764354610925,8.362708,3041.7,3041.6,5.0661915]
[1764354611125,7.585447,3041.7,3041.6,5.0661915]
[1764354611355,1.0511,3041.7,3041.6,5.0661915]
[1764354611653,9.406215,3041.7,3041.6,5.0661915]
[1764354612355,7.220418,3041.7,3041.6,5.0661915]
[1764354612570,4.613219,3042.0,3041.6,8.66623479]
[1764354612851,0.04109273,3041.9,3041.6,6.57548658]
[1764354613017,0.59249138,3042.0,3041.4,6.57591898]
[1764354613216,0.1,3041.9,3041.4,7.61445426]
[1764354613525,0.5514,3041.8,3041.4,7.61445426]
[1764354614047,0.5514,3041.8,3041.7,5.0661915]
[1764354614444,0.4514,3041.8,3041.7,5.0661915]
[1764354614743,0.4997,3041.8,3041.7,5.0661915]
[1764354614969,0.5997,3041.8,3041.7,5.0661915]
[1764354615146,0.5514,3042.4,3041.7,12.66938105]
[1764354615452,0.4514,3042.4,3042.3,5.0661915]
[1764354615629,0.5514,3042.4,3042.3,5.0661915]
[1764354615828,1.0511,3042.4,3042.3,5.0661915]
[1764354616226,0.9511,3042.4,3042.3,5.0661915]
[1764354616639,1.0511,3042.4,3042.3,5.0661915]
[1764354617228,1.25786055,3042.4,3042.3,5.0661915]
[1764354617456,0.1,3042.1,3042.0,5.0661915]
[1764354617652,3.51400295,3042.6,3042.0,5.0661915]
[1764354617653,0.83424788,3042.3,3042.0,5.0661915]
[1764354617930,0.4572,3042.1,3042.0,5.0661915]
[1764354618143,0.04308733,3042.3,3042.0,5.0661915]
[1764354618144,0.002,3042.3,3042.0,5.0661915]
[1764354618360,0.002,3042.3,3042.2,0.3123]
[1764354618557,0.002,3042.3,3042.2,7.19323378]
[1764354618731,0.002,3042.3,3042.2,7.98030716]
[1764354619327,0.002,3042.3,3042.2,11.26740202]
[1764354620058,0.4592,3042.3,3042.2,3.28709486]
[1764354620277,0.002,3042.3,3042.2,3.28709486]
[1764354620637,1.0456,3042.3,3042.2,3.28709486]
[1764354620959,0.9456,3042.3,3042.2,3.28709486]
[1764354621943,1.0456,3042.3,3042.2,3.28709486]
[1764354622145,0.4592,3042.3,3042.2,3.28709486]
[1764354622835,0.9456,3042.3,3042.2,3.28709486]
[1764354623855,0.4592,3042.3,3042.2,3.28709486]
[1764354624292,0.002,3042.3,3042.2,3.28709486]
[1764354624470,0.002,3042.3,3042.2,3.59939486]
[1764354624669,0.002,3042.3,3042.2,2.87500486]
[1764354625396,0.4592,3042.3,3042.2,2.87500486]
[1764354625766,0.002,3042.3,3042.2,10.08431988]
[1764354626096,0.002,3042.3,3042.2,11.73859051]
[1764354626256,0.30671025,3043.0,3042.5,0.3123]
[1764354626461,4.344141,3043.4,3042.7,7.19323378]
[1764354626661,0.30671025,3043.3,3042.8,1.72622219]
[1764354627195,0.4864,3043.3,3042.8,1.72622219]
[1764354628666,0.4864,3043.3,3042.9,3.28633869]
[1764354628667,0.5864,3043.3,3042.9,3.28633869]
[1764354628871,0.6417,3042.9,3042.7,3.28655317]
[1764354629086,0.9436,3042.8,3042.7,3.28655317]
[1764354629660,0.1845,3042.9,3042.7,6.57310787]
[1764354630299,0.4864,3043.0,3042.7,6.57310787]
[1764354632601,0.4572,3042.8,3042.7,3.28655317]
[1764354632804,0.1845,3042.9,3042.7,6.57310787]
[1764354633293,0.1845,3042.9,3042.7,6.58917451]
[1764354633460,0.4864,3043.0,3042.7,6.58917451]
[1764354634561,0.52747113,3043.5,3042.9,0.3123]
[1764354634764,2.2027,3043.3,3042.9,0.3123]
[1764354634963,0.52747113,3043.5,3042.9,0.3123]
[1764354635162,0.76749043,3043.4,3042.9,0.3123]
[1764354635504,2.2007,3043.2,3043.0,3.28623069]
[1764354635806,0.4609,3043.3,3043.0,6.57246138]
[1764354635966,0.4919,3043.1,3043.0,3.28623069]
[1764354636470,1.0528,3043.1,3043.0,3.28623069]
[1764354636666,0.9528,3043.1,3043.0,3.28623069]
[1764354637462,0.1,3043.2,3042.9,6.57267173]
[1764354637862,0.5609,3043.2,3042.9,6.57267173]
[1764354638067,0.4919,3043.0,3042.9,3.28633304]
[1764354638270,0.4919,3043.0,3042.6,0.209]
[1764354638594,0.4919,3042.7,3042.6,4.22125683]
[1764354638996,0.5244,3042.9,3042.6,7.50791955]
[1764354639982,0.5244,3042.9,3042.3,4.27460671]
[1764354639983,0.4919,3042.7,3042.4,3.28687877]
[1764354640190,0.5244,3042.9,3042.2,0.209]
[1764354640191,0.4919,3042.4,3042.2,0.209]
[1764354640384,0.4919,3042.3,3042.2,0.209]
[1764354640579,0.4609,3042.4,3042.2,5.26969161]
[1764354640760,0.1,3042.6,3042.2,5.26969161]
[1764354640965,0.1,3042.6,3042.5,5.06069161]
[1764354641185,0.1,3042.8,3042.5,5.37299161]
[1764354641381,0.30689144,3042.7,3042.5,5.37299161]
[1764354641581,0.5609,3042.8,3042.5,5.06069161]
[1764354641789,0.4919,3042.6,3042.5,5.06069161]
[1764354641991,0.7987995,3042.6,3042.5,8.34746235]
[1764354642300,1.35969934,3042.6,3042.5,8.34746235]
[1764354642662,1.25969934,3042.6,3042.5,8.34746235]
[1764354642872,1.35969934,3042.6,3042.5,5.06069161]
[1764354643078,1.35969934,3042.6,3042.5,8.34746235]
[1764354643986,1.35969934,3042.6,3042.5,5.06069161]
[1764354644179,0.1,3042.5,3042.2,8.34778647]
[1764354644493,0.30689934,3042.4,3042.2,8.34778647]
[1764354644692,0.4919,3042.3,3042.2,8.34778647]
[1764354644901,1.26016311,3042.3,3042.2,8.34778647]
[1764354645269,1.36016311,3042.3,3042.2,5.06069161]
[1764354645779,1.26016311,3042.3,3041.9,5.06069161]
[1764354645974,0.5919,3042.0,3041.6,8.34840767]
[1764354646206,0.6833,3041.6,3041.4,8.34859791]
[1764354646377,0.5919,3041.5,3041.4,9.07419202]
[1764354646693,0.4919,3041.5,3041.4,9.07419202]
[1764354647107,0.4919,3041.5,3041.4,5.06069161]
[1764354647594,0.4919,3041.5,3041.4,8.3486511]
[1764354648190,0.1,3041.6,3041.4,11.63661059]
[1764354648701,1.0528,3041.5,3041.4,3.28795949]
[1764354649600,1.0528,3041.5,3041.3,0.001]
[1764354649601,8.827174,3041.4,3041.3,0.001]
[1764354649801,10.18698827,3041.4,3041.3,0.001]
[1764354649969,9.617605,3041.4,3041.3,0.001]
[1764354650175,9.92464175,3041.4,3041.3,0.001]
[1764354650506,4.37969975,3041.4,3041.3,0.001]
[1764354650801,0.89893675,3041.4,3041.3,0.001]
[1764354651302,1.35983675,3041.4,3041.3,0.001]